fUSD/lending_fUSD_20250422
["ID","MTS","AMOUNT","RATE_DAILY","PERIOD"]
[358611399,1745310632482,-948.9,0.0002,2]
[358611400,1745310632493,-906.39902766,0.0002,2]
[358611401,1745310632505,-1073.90425003,0.0002,2]
[358611409,1745310632617,485.10830852,0.00054794,120]
[358611410,1745310632729,500.0,0.00054794,120]
[358611411,1745310633976,500.0,0.00054794,120]
[358611412,1745310634254,588.32,0.00054794,120]
[358611413,1745310634567,574.85327781,0.00054794,120]
[358611414,1745310637341,500.0,0.00054794,120]
[358611415,1745310637927,500.0,0.00054794,120]
[358611417,1745310638246,-689.32368187,0.0002,2]
[358611418,1745310638258,-884.36606093,0.0002,2]
[358611419,1745310638352,-11568.6154122,0.0002,2]
[358611420,1745310638367,-5447.46272893,0.0002,2]
[358611421,1745310638379,-3600.0,0.0002,2]
[358611422,1745310638462,-358.33485164,0.0002,2]
[358611603,1745310640675,-2996.28,0.0002,2]
[358611665,1745310641281,500.0,0.00054794,120]
[358611725,1745310641880,3000.00000099,0.00054754,120]
[358611734,1745310641971,500.0,0.00054794,120]
[358611738,1745310641998,-1955314.56154108,0.0002,2]
[358611740,1745310642009,-3567.1799999,0.0002,2]
[358611755,1745310642161,-1500.0,0.0002,2]
[358611763,1745310642227,500.0,0.00054794,120]
[358611803,1745310642643,446.75174737,0.00054794,120]
[358611886,1745310643502,525.37203865,0.00054794,120]
[358611891,1745310643542,500.0,0.00054794,120]
[358611988,1745310644122,519.97306136,0.00054794,120]
[358611995,1745310644186,500.0,0.00054794,120]
[358612157,1745310645934,559.39048632,0.00054794,120]
[358612193,1745310646260,-1203.46088792,0.0002,2]
[358612199,1745310646314,-8869.1028,0.0002,2]
[358612206,1745310646370,-1597.8493469,0.0002,2]
[358612208,1745310646382,-1283.18006,0.0002,2]
[358612216,1745310646451,500.0,0.00054794,120]
[358612317,1745310647438,500.0,0.00054794,120]
[358612346,1745310647707,504.31,0.00054794,120]
[358612355,1745310647790,500.0,0.00054794,120]
[358612373,1745310647955,542.73426042,0.00054794,120]
[358612547,1745310652484,517.74497783,0.00054794,120]
[358612548,1745310652637,500.0,0.00054794,120]
[358612549,1745310655403,500.0,0.00054794,120]
[358612550,1745310655591,931.36,0.00054794,120]
[358612551,1745310656815,500.0,0.00054794,120]
[358612552,1745310657235,582.86151218,0.00054794,120]
[358612553,1745310658292,449.22904299,0.00054794,120]
[358612554,1745310658951,640.8141085,0.00054794,120]
[358612555,1745310659211,200.0,0.00054521,30]
[358612556,1745310659245,500.0,0.00054794,120]
[358612557,1745310659577,500.0,0.00054794,120]
[358612558,1745310660129,1067.94,0.00054794,120]
[358612559,1745310660497,284.96367003,0.00054794,120]
[358612560,1745310660896,536.92756005,0.00054794,120]
[358612561,1745310661638,500.0,0.00054794,30]
[358612562,1745310664612,500.0,0.00054794,120]
[358612563,1745310666247,500.0,0.00054794,120]
[358612564,1745310668754,2000.0,0.00054754,120]
[358612565,1745310669014,500.0,0.00054794,120]
[358612566,1745310670311,500.0,0.00054794,120]
[358612567,1745310670381,500.0,0.00054794,120]
[358612568,1745310671208,539.88,0.00054794,120]
[358612569,1745310676467,500.0,0.00054794,120]
[358612570,1745310677864,537.28644307,0.00054794,120]
[358612571,1745310679911,500.0,0.00054794,120]
[358612572,1745310680819,500.0,0.00054794,120]
[358612573,1745310683424,529.01,0.00054794,120]
[358612574,1745310686315,500.0,0.00054794,120]
[358612575,1745310686897,542.15,0.000444,60]
[358612576,1745310687283,542.15,0.000469,60]
[358612577,1745310687576,542.15,0.000498,60]
[358612578,1745310687890,542.15,0.000537,60]
[358612579,1745310688202,525.57307397,0.00054794,120]
[358612580,1745310688412,500.0,0.00054794,120]
[358612581,1745310689097,525.25699808,0.00054794,120]
[358612582,1745310689326,500.0,0.00054794,120]
[358612583,1745310690004,500.0,0.00054794,120]
[358612584,1745310690950,500.0,0.00054794,120]
[358612585,1745310691070,527.70919668,0.00054794,120]
[358612586,1745310691808,1076.83,0.00054794,120]
[358612587,1745310692274,500.0,0.00054794,120]
[358612588,1745310692591,500.0,0.00054794,120]
[358612589,1745310692973,549.97,0.00054794,120]
[358612590,1745310693007,330.60674375,0.00054794,120]
[358612591,1745310693158,500.0,0.00054794,120]
[358612592,1745310693935,500.0,0.00054794,120]
[358612593,1745310696318,500.0,0.00054794,120]
[358612594,1745310698015,4000.0,0.00054795,60]
[358612595,1745310698136,500.0,0.00054794,120]
[358612596,1745310698215,150.0,0.00054794,120]
[358612597,1745310700333,500.0,0.00054794,120]
[358612598,1745310701965,500.0,0.00054794,120]
[358612599,1745310703903,595.76,0.00054794,120]
[358612600,1745310703957,500.0,0.00054794,30]
[358612601,1745310704191,344.07209215,0.00054794,120]
[358612602,1745310704867,904.15,0.00054794,120]
[358612603,1745310707469,500.0,0.00054794,120]
[358612604,1745310708047,500.0,0.00054794,120]
[358612605,1745310712979,500.0,0.00054794,120]
[358612606,1745310714064,500.0,0.00054794,120]
[358612607,1745310714890,500.0,0.00054794,120]
[358612608,1745310716006,500.0,0.00054794,120]
[358612609,1745310716624,500.0,0.00054794,120]
[358612610,1745310717940,500.0,0.00054794,120]
[358612611,1745310718966,500.0,0.00054794,120]
[358612612,1745310719955,500.0,0.00054794,120]
[358612613,1745310720445,538.64095955,0.00054794,120]
[358612614,1745310721133,2000.0,0.0005479,120]
[358612615,1745310722262,500.0,0.00054794,120]
[358612616,1745310723592,500.0,0.00054794,120]
[358612617,1745310723932,527.16863017,0.00054794,120]
[358612618,1745310726674,500.0,0.00054794,120]
[358612619,1745310726990,505.59,0.00054794,120]
[358612620,1745310728794,1353.94,0.00054794,120]
[358612621,1745310729291,659.06,0.00054794,120]
[358612622,1745310730317,550.82,0.00054794,120]
[358612623,1745310731724,500.0,0.00054794,120]
[358612624,1745310732866,500.0,0.00054794,120]
[358612625,1745310735352,647.22716837,0.00054794,120]
[358612626,1745310738906,500.0,0.00054794,120]
[358612627,1745310739936,460.22342209,0.00054794,120]
[358612628,1745310740359,500.0,0.00054794,120]
[358612629,1745310740977,500.0,0.00054794,120]
[358612630,1745310742153,1027.53,0.00054794,120]
[358612631,1745310742191,500.0,0.00054794,120]
[358612632,1745310742225,365.52206383,0.00054794,120]
[358612633,1745310743201,500.0,0.00054794,120]
[358612634,1745310743365,524.75,0.00054794,120]
[358612635,1745310744043,500.0,0.00054794,120]
[358612636,1745310745983,536.07,0.00054794,120]
[358612637,1745310746104,500.0,0.00054794,120]
[358612638,1745310749243,594.26,0.00054794,120]
[358612639,1745310749930,500.0,0.00054794,120]
[358612640,1745310750277,500.0,0.00054794,120]
[358612641,1745310752264,500.0,0.00054794,120]
[358612642,1745310752348,500.0,0.00054794,120]
[358612643,1745310757778,500.0,0.00054794,60]
[358612644,1745310758646,472.76016803,0.00054794,120]
[358612645,1745310759085,500.0,0.00054794,120]
[358612646,1745310760564,500.0,0.00054794,120]
[358612647,1745310761029,500.0,0.00054794,120]
[358612648,1745310761143,500.0,0.00054794,120]
[358612649,1745310761320,533.18706608,0.00054794,120]
[358612650,1745310761943,500.0,0.00054794,120]
[358612651,1745310762553,387.09070853,0.00054794,120]
[358612652,1745310763066,515.24,0.00054794,120]
[358612653,1745310764953,500.0,0.00054794,120]
[358612654,1745310765178,500.0,0.00054794,120]
[358612655,1745310766304,500.0,0.00054794,120]
[358612656,1745310768153,2689.6,0.00054794,120]
[358612657,1745310769104,500.0,0.00054794,120]
[358612658,1745310769842,500.0,0.00054794,120]
[358612659,1745310770968,500.0,0.00054794,120]
[358612660,1745310772251,500.0,0.00054794,120]
[358612661,1745310773067,500.0,0.00054794,120]
[358612662,1745310773456,500.0,0.00054794,120]
[358612663,1745310773727,500.0,0.00054794,120]
[358612664,1745310776210,340.71155237,0.00054794,120]
[358612665,1745310776608,969.16,0.00054794,120]
[358612666,1745310777202,500.0,0.00054794,120]
[358612667,1745310778789,500.0,0.00054794,120]
[358612668,1745310779575,500.0,0.00054794,120]
[358612669,1745310779824,500.0,0.00054794,120]
[358612670,1745310779963,500.0,0.00054794,120]
[358612671,1745310780884,500.0,0.00054794,120]
[358612672,1745310785220,500.0,0.00054794,120]
[358612673,1745310786147,1000.0,0.00054794,120]
[358612674,1745310786519,500.0,0.00054794,120]
[358612675,1745310788390,500.0,0.00054794,120]
[358612676,1745310788816,500.0,0.00054794,120]
[358612677,1745310790334,500.0,0.00054794,120]
[358612678,1745310791399,500.0,0.00054794,120]
[358612679,1745310793946,15893.55,0.00054794,120]
[358612680,1745310794048,500.0,0.00054794,120]
[358612681,1745310794934,500.0,0.00054794,120]
[358612682,1745310797590,500.0,0.00054794,120]
[358612683,1745310799500,561.80547083,0.00054794,120]
[358612684,1745310800043,500.0,0.00054794,120]
[358612685,1745310800405,500.0,0.00054794,56]
[358612686,1745310801809,500.0,0.00054794,120]
[358612687,1745310803263,500.0,0.00054794,120]
[358612688,1745310804236,554.12,0.00054794,120]
[358612689,1745310804271,500.0,0.00054794,120]
[358612690,1745310806284,5725.16,0.00054794,120]
[358612691,1745310807185,500.0,0.00054794,120]
[358612692,1745310807936,500.0,0.00054794,120]
[358612693,1745310810327,521.99985088,0.00054794,120]
[358612694,1745310811097,3000.0,0.0005479,120]
[358612695,1745310812865,887.67,0.00054795,120]
[358612696,1745310813753,500.0,0.00054794,120]
[358612697,1745310813857,500.0,0.00054794,120]
[358612698,1745310817287,500.0,0.00054794,120]
[358612699,1745310818396,500.0,0.00054794,120]
[358612700,1745310819669,500.0,0.00054794,120]
[358612701,1745310820856,500.0,0.00054794,120]
[358612702,1745310821920,500.0,0.00054794,120]
[358612703,1745310822279,500.0,0.00054794,120]
[358612704,1745310822387,406.61956085,0.00054794,120]
[358612705,1745310825899,500.0,0.00054794,120]
[358612706,1745310826012,496.53646598,0.00054794,120]
[358612707,1745310828256,500.0,0.00054794,120]
[358612708,1745310829847,225.43359437,0.00054794,120]
[358612709,1745310830939,500.0,0.00054794,120]
[358612710,1745310833379,1910.51,0.00054794,120]
[358612711,1745310835388,500.0,0.00054794,120]
[358612712,1745310835893,500.0,0.00054794,120]
[358612713,1745310837761,858.97,0.00054794,120]
[358612714,1745310838073,500.0,0.00054794,120]
[358612715,1745310838560,500.0,0.00054794,120]
[358612716,1745310839226,169.0,0.00045,90]
[358612717,1745310842481,500.0,0.00054794,120]
[358612718,1745310846318,500.0,0.00054794,120]
[358612719,1745310846941,500.0,0.00054794,120]
[358612720,1745310846993,500.0,0.00054794,120]
[358612721,1745310849537,500.0,0.00054794,120]
[358612722,1745310854511,500.0,0.00054794,120]
[358612723,1745310856725,500.0,0.00054794,120]
[358612724,1745310856876,500.0,0.00054794,120]
[358612725,1745310857772,500.0,0.00054794,120]
[358612726,1745310859085,563.81,0.00054794,120]
[358612727,1745310859144,1000.0,0.00054794,120]
[358612728,1745310860264,500.0,0.00054794,120]
[358612729,1745310863448,500.0,0.00054794,120]
[358612730,1745310864150,500.0,0.00054794,120]
[358612731,1745310873310,500.0,0.00054794,120]
[358612732,1745310875158,500.0,0.00054794,120]
[358612733,1745310875560,315.74661153,0.00054794,120]
[358612734,1745310877640,1064.76,0.00054794,120]
[358612735,1745310878473,500.0,0.00054794,120]
[358612736,1745310878971,500.0,0.00054794,120]
[358612737,1745310880843,500.0,0.00054794,120]
[358612738,1745310881394,500.0,0.00054794,120]
[358612739,1745310882864,500.0,0.00054794,120]
[358612740,1745310883518,325.29,0.000441,60]
[358612741,1745310883852,325.29,0.000468,60]
[358612742,1745310884179,325.29,0.000493,60]
[358612743,1745310884486,325.29,0.000532,60]
[358612744,1745310884847,500.0,0.00054794,120]
[358612745,1745310886162,500.0,0.00054794,118]
[358612746,1745310886831,447.09225963,0.00054794,120]
[358612747,1745310887830,500.0,0.00054794,120]
[358612748,1745310887910,500.0,0.00054794,120]
[358612749,1745310890349,1023.45,0.00054794,120]
[358612750,1745310893524,431.78304428,0.00054794,120]
[358612751,1745310893761,500.0,0.00054794,120]
[358612752,1745310895642,309.860194,0.00054794,120]
[358612753,1745310898717,500.0,0.00054794,120]
[358612754,1745310899170,500.0,0.00054794,120]
[358612755,1745310900456,500.0,0.00054794,120]
[358612756,1745310900490,500.0,0.00054794,120]
[358612757,1745310901052,500.0,0.00054794,120]
[358612758,1745310903942,-3.88011494,0.000199,2]
[358612759,1745310903970,-167.23977012,0.000199,2]
[358612760,1745310905306,500.0,0.00054794,120]
[358612761,1745310907946,500.0,0.00054794,120]
[358612762,1745310911988,500.0,0.00054794,120]
[358612763,1745310912028,500.0,0.00054794,120]
[358612764,1745310913596,500.0,0.00054794,120]
[358612765,1745310914457,506.97,0.00054794,120]
[358612766,1745310915844,514.24923519,0.00054794,120]
[358612767,1745310917118,500.0,0.00054794,120]
[358612768,1745310918494,500.0,0.00054794,120]
[358612769,1745310923421,500.0,0.00054794,120]
[358612770,1745310930780,500.0,0.00054794,120]
[358612771,1745310932680,500.0,0.00054794,120]
[358612772,1745310933718,500.0,0.00054794,120]
[358612773,1745310940996,500.0,0.00054794,120]
[358612774,1745310943084,500.0,0.00054794,120]
[358612775,1745310949680,527.05,0.00054794,120]
[358612776,1745310950843,500.0,0.00054794,120]
[358612777,1745310952907,3822.45244967,0.00054794,120]
[358612778,1745310955469,8850.68606789,0.0005478,30]
[358612779,1745310955657,500.0,0.00054794,120]
[358612780,1745310957596,500.0,0.00054794,120]
[358612781,1745310958503,500.0,0.00054794,120]
[358612782,1745310959961,570.93,0.00054794,120]
[358612783,1745310964383,500.0,0.00054794,120]
[358612784,1745310967574,500.0,0.00054794,120]
[358612785,1745310969250,500.0,0.00054794,120]
[358612786,1745310970430,866.48,0.00054794,120]
[358612787,1745310971473,500.0,0.00054794,120]
[358612788,1745310972186,500.0,0.00054794,120]
[358612789,1745310975169,500.0,0.00054794,120]
[358612790,1745310975896,200.0,0.00054521,30]
[358612791,1745310977127,639.56723439,0.00054794,120]
[358612792,1745310979733,500.0,0.00054794,120]
[358612793,1745310979940,500.00382001,0.00054795,120]
[358612794,1745310981007,500.0,0.00054794,120]
[358612795,1745310981567,500.0,0.00054794,120]
[358612796,1745310982497,500.0,0.00054794,120]
[358612797,1745310983609,500.0,0.00054794,120]
[358612798,1745310985152,1000.0,0.00054794,35]
[358612799,1745310986315,500.0,0.00054794,120]
[358612800,1745310986683,500.0,0.00054794,120]
[358612801,1745310986825,527.87,0.00054794,120]
[358612802,1745310987743,500.0,0.00054794,120]
[358612803,1745310988025,500.0,0.00054794,120]
[358612804,1745310990797,500.0,0.00054794,120]
[358612805,1745310991475,500.0,0.00054794,120]
[358612806,1745310995041,500.0,0.00054794,120]
[358612807,1745310995231,1297.53,0.00054794,120]
[358612808,1745310998750,984.72,0.00054794,120]
[358612809,1745311001140,500.0,0.00054794,120]
[358612810,1745311001455,500.0,0.00054794,120]
[358612811,1745311002468,500.0,0.00054794,120]
[358612812,1745311003859,500.0,0.00054794,120]
[358612813,1745311006601,500.0,0.00054794,120]
[358612814,1745311006954,500.0,0.00054794,120]
[358612815,1745311008646,500.0,0.00054794,120]
[358612816,1745311009524,546.50334718,0.00054794,120]
[358612817,1745311011569,500.0,0.00054794,120]
[358612818,1745311014019,500.0,0.00054794,120]
[358612819,1745311014992,500.0,0.00054794,60]
[358612820,1745311015797,569.5,0.00054794,120]
[358612821,1745311019675,500.0,0.00054794,120]
[358612822,1745311020388,324.26419469,0.00054794,120]
[358612823,1745311022576,500.0,0.00054794,120]
[358612824,1745311022894,500.0,0.00054794,120]
[358612825,1745311023718,91516.49580368,0.00054794,30]
[358612826,1745311025053,500.0,0.00054794,120]
[358612827,1745311027679,500.0,0.00054794,120]
[358612828,1745311029692,512.83,0.00054794,120]
[358612829,1745311030252,500.0,0.00054794,120]
[358612830,1745311031889,500.0,0.00054794,120]
[358612831,1745311033818,500.0,0.00054794,30]
[358612832,1745311033978,500.0,0.00054794,56]
[358612833,1745311034309,2577.53,0.00054794,120]
[358612834,1745311034351,500.0,0.00054794,120]
[358612835,1745311037218,127163.907865,0.00054795,30]
[358612836,1745311039253,500.0,0.00054794,120]
[358612837,1745311041069,500.0,0.00054794,120]
[358612838,1745311042862,928.78,0.00054794,120]
[358612839,1745311043263,300000.0,0.000547,120]
[358612840,1745311044199,500.0,0.00054794,120]
[358612841,1745311044350,500.0,0.00054794,120]
[358612842,1745311044756,500.0,0.00054794,120]
[358612843,1745311047983,500.0,0.00054794,120]
[358612844,1745311049467,500.0,0.00054794,120]
[358612845,1745311049910,15231.32,0.00054794,120]
[358612846,1745311052220,1000.0,0.00054794,120]
[358612847,1745311057826,500.0,0.00054794,120]
[358612848,1745311058192,500.0,0.00054794,120]
[358612849,1745311064200,531.03,0.00054794,120]
[358612850,1745311065619,500.0,0.00054794,120]
[358612851,1745311068249,500.0,0.00054794,120]
[358612852,1745311068978,398.30174575,0.00054794,120]
[358612853,1745311069604,500.0,0.00054794,120]
[358612854,1745311070432,5486.61,0.00054794,120]
[358612855,1745311074952,500.0,0.00054794,120]
[358612856,1745311076236,500.0,0.00054794,120]
[358612857,1745311076734,500.0,0.00054794,120]
[358612858,1745311078736,1000.0,0.00054794,120]
[358612859,1745311080531,195.17,0.000439,60]
[358612860,1745311081211,195.17,0.000465,60]
[358612861,1745311081487,195.17,0.000486,60]
[358612862,1745311081873,195.17,0.000532,60]
[358612863,1745311082855,500.0,0.00054794,120]
[358612864,1745311085728,500.0,0.00054794,120]
[358612865,1745311087738,500.0,0.00054794,120]
[358612866,1745311095991,500.0,0.00054794,120]
[358612867,1745311096088,500.0,0.00054794,120]
[358612868,1745311096264,1830.9,0.00054794,120]
[358612869,1745311096575,500.0,0.00054794,120]
[358612870,1745311098317,1020.39,0.00054794,120]
[358612871,1745311103976,500.0,0.00054794,120]
[358612872,1745311105243,500.0,0.00054794,120]
[358612873,1745311107565,500.0,0.00054794,120]
[358612874,1745311107637,500.0,0.00054794,118]
[358612875,1745311111216,500.0,0.00054794,120]
[358612876,1745311114633,500.0,0.00054794,120]
[358612877,1745311115115,500.0,0.00054794,120]
[358612878,1745311118988,400.48307056,0.00054794,120]
[358612879,1745311120876,500.0,0.00054794,120]
[358612880,1745311121490,540.32,0.00054794,120]
[358612881,1745311125107,500.0,0.00054794,120]
[358612882,1745311129126,500.0,0.00054794,120]
[358612883,1745311129792,500.0,0.00054794,120]
[358612884,1745311132061,240.81951547,0.00054794,120]
[358612885,1745311137367,500.0,0.00054794,120]
[358612886,1745311141568,500.0,0.00054794,120]
[358612888,1745311149179,500.0,0.00054794,120]
[358612889,1745311150101,500.0,0.00054794,120]
[358612890,1745311151121,500.0,0.00054794,120]
[358612891,1745311152421,500.0,0.00054794,120]
[358612892,1745311152630,500.0,0.00054794,120]
[358612893,1745311159037,500.0,0.00054794,120]
[358612894,1745311160847,500.0,0.00054794,120]
[358612895,1745311160932,500.0,0.00054794,120]
[358612896,1745311166222,500.0,0.00054794,120]
[358612897,1745311166753,505.09,0.00054794,120]
[358612898,1745311171457,500.0,0.00054794,120]
[358612899,1745311173221,500.0,0.00054794,120]
[358612900,1745311175126,500.0,0.00054794,120]
[358612901,1745311175768,500.0,0.00054794,120]
[358612902,1745311177644,547.14,0.00054794,120]
[358612903,1745311178470,500.0,0.00054794,120]
[358612904,1745311182345,500.0,0.00054794,120]
[358612905,1745311183378,530.36,0.00054794,120]
[358612906,1745311184523,551.47,0.00054794,120]
[358612907,1745311186872,830.38,0.00054794,120]
[358612908,1745311187487,500.0,0.00054794,120]
[358612909,1745311197356,500.0,0.00054794,120]
[358612910,1745311199662,500.0,0.00054794,120]
[358612911,1745311202496,583.07285172,0.00054794,120]
[358612912,1745311204104,505.87,0.00054794,120]
[358612913,1745311205336,500.0,0.00054794,120]
[358612914,1745311206539,533.22649711,0.00054794,120]
[358612915,1745311206892,500.0,0.00054794,120]
[358612916,1745311208777,500.0,0.00054794,120]
[358612917,1745311209061,500.0,0.00054794,120]
[358612918,1745311210324,1243.46,0.00054794,120]
[358612919,1745311211569,347.15229788,0.00054794,120]
[358612920,1745311211606,162.624342,0.00054795,120]
[358612921,1745311215152,943.69,0.00054794,120]
[358612922,1745311215419,550.63311633,0.00054794,120]
[358612923,1745311215799,500.0,0.00054794,120]
[358612924,1745311215944,1726.0,0.00054795,30]
[358612925,1745311217399,500.0,0.00054794,120]
[358612926,1745311220175,500.0,0.00054794,120]
[358612927,1745311220262,152.44,0.000488,45]
[358612928,1745311220308,152.44,0.000488,45]
[358612929,1745311220376,152.44,0.000488,45]
[358612930,1745311220486,152.44,0.000488,45]
[358612931,1745311220532,152.44,0.000488,45]
[358612932,1745311220573,152.44,0.000488,45]
[358612933,1745311220614,152.44,0.000538,54]
[358612934,1745311220721,152.44,0.000538,54]
[358612935,1745311220784,152.44,0.000538,54]
[358612936,1745311220844,152.44,0.000538,54]
[358612937,1745311220877,500.0,0.00054794,120]
[358612938,1745311220921,152.44,0.000538,54]
[358612939,1745311220967,152.44,0.000538,54]
[358612940,1745311221026,152.44,0.000538,54]
[358612941,1745311221088,152.44,0.000538,54]
[358612942,1745311221157,152.44,0.000538,54]
[358612943,1745311221212,152.44,0.000538,54]
[358612944,1745311221250,578.35420724,0.00054794,120]
[358612945,1745311221288,152.44,0.000538,54]
[358612946,1745311221371,152.44,0.000538,54]
[358612947,1745311221795,500.0,0.00054794,120]
[358612948,1745311223110,500.0,0.00054794,120]
[358612949,1745311224705,591.44640147,0.00054794,120]
[358612950,1745311225397,500.0,0.00054794,120]
[358612951,1745311225437,500.0,0.00054794,120]
[358612952,1745311225735,500.0,0.00054794,120]
[358612953,1745311226429,3372.18205023,0.00054794,30]
[358612954,1745311227377,500.0,0.00054794,120]
[358612955,1745311228816,500.0,0.00054794,120]
[358612956,1745311230647,500.0,0.00054794,120]
[358612957,1745311230942,500.0,0.00054794,60]
[358612958,1745311231276,577.8685255,0.00054794,120]
[358612959,1745311231991,500.0,0.00054794,120]
[358612960,1745311232024,545.77,0.00054794,120]
[358612961,1745311232129,500.0,0.00054794,120]
[358612962,1745311234061,500.0,0.00054794,120]
[358612963,1745311234175,500.0,0.00054794,120]
[358612964,1745311234877,500.0,0.00054794,120]
[358612965,1745311235619,500.0,0.00054794,120]
[358612966,1745311236563,500.0,0.00054794,120]
[358612967,1745311237536,500.0,0.00054794,120]
[358612968,1745311237944,500.0,0.00054794,120]
[358612969,1745311238341,500.0,0.00054794,120]
[358612970,1745311239261,500.0,0.00054794,120]
[358612971,1745311240460,500.0,0.00054794,120]
[358612972,1745311241871,500.0,0.00054794,120]
[358612973,1745311242994,500.0,0.00054794,120]
[358612974,1745311243681,500.0,0.00054794,120]
[358612975,1745311244368,500.0,0.00054794,120]
[358612976,1745311245292,500.0,0.00054794,120]
[358612977,1745311246719,892.55,0.00054794,120]
[358612978,1745311248700,500.0,0.00054794,120]
[358612979,1745311249234,2470.13,0.00054794,120]
[358612980,1745311250887,500.0,0.00054794,120]
[358612981,1745311250942,500.0,0.00054794,120]
[358612982,1745311252045,500.0,0.00054794,120]
[358612983,1745311253087,533.26639107,0.00054794,120]
[358612984,1745311255358,517.39,0.00054794,120]
[358612985,1745311256225,50000.0,0.00054,30]
[358612986,1745311256956,500.0,0.00054794,120]
[358612987,1745311257068,890.08,0.00054794,120]
[358612988,1745311260012,500.0,0.00054794,120]
[358612989,1745311263044,500.0,0.00054794,120]
[358612990,1745311265366,14596.68,0.00054794,120]
[358612991,1745311265781,50000.0,0.00054,31]
[358612992,1745311267058,1000.0,0.00054794,120]
[358612993,1745311267392,500.0,0.00054794,120]
[358612994,1745311268615,500.0,0.00054794,120]
[358612995,1745311269613,500.0,0.00054794,120]
[358612997,1745311271394,50000.0,0.00054,32]
[358612998,1745311274486,500.0,0.00054794,120]
[358612999,1745311275669,50000.0,0.00054,33]
[358613000,1745311275917,500.0,0.00054794,120]
[358613001,1745311276475,500.0,0.00054794,120]
[358613002,1745311277489,500.0,0.00054794,120]
[358613003,1745311278048,167.3,0.000435,60]
[358613004,1745311278462,167.3,0.000465,60]
[358613005,1745311278849,167.3,0.000486,60]
[358613006,1745311279630,167.3,0.000532,60]
[358613007,1745311281349,50000.0,0.00054,34]
[358613008,1745311283136,1031.96,0.00054794,120]
[358613009,1745311284715,555.58734738,0.00054794,120]